[Event "Kvibergspelen 2018"]
[Site "Prioritet Serneke Arena, Krutvagen 2, Gothenburg, Sweden"]
[Date "2018.04.22"]
[Round "8.12"]
[White "Al Hadarani, Hatim"]
[Black "Svorono, Gabriel"]
[Result "1/2-1/2"]
[TimeControl "15 minutes + 5 seconds per move from move one (Round 1 - 4) / 90 minutes + 30 seconds per move from move one (Round 5 - 8)"]
[WhiteTitle "FM"]
[WhiteFideId "9400273"]
[BlackFideId "1715623"]
[WhiteElo "2334"]
[BlackElo "2089"]

1. d4 {[%clk 01:30:56]} {[%emt 00:00:03]} d5 {[%clk 01:30:54]} {[%emt
00:00:06]} 2. Bg5 {[%clk 01:31:17]} {[%emt 00:00:10]} h6 {[%clk 01:29:49]}
{[%emt 00:01:36]} 3. Bh4 {[%clk 01:31:38]} {[%emt 00:00:09]} g5 {[%clk
01:30:06]} {[%emt 00:00:13]} 4. Bg3 {[%clk 01:32:00]} {[%emt 00:00:07]} Bg7
{[%clk 01:30:24]} {[%emt 00:00:12]} 5. e3 {[%clk 01:32:03]} {[%emt 00:00:27]}
c5 {[%clk 01:28:49]} {[%emt 00:02:06]} 6. c3 {[%clk 01:28:47]} {[%emt
00:03:46]} Qb6 {[%clk 01:27:35]} {[%emt 00:01:44]} 7. Qb3 {[%clk 01:26:33]}
{[%emt 00:02:44]} Nc6 {[%clk 01:24:41]} {[%emt 00:03:23]} 8. Nd2 {[%clk
01:22:46]} {[%emt 00:04:17]} Nf6 {[%clk 01:21:35]} {[%emt 00:03:36]} 9. h4
{[%clk 01:18:16]} {[%emt 00:05:00]} cxd4 {[%clk 01:12:49]} {[%emt 00:09:16]} 10.
exd4 {[%clk 01:18:13]} {[%emt 00:00:33]} Bf5 {[%clk 01:11:45]} {[%emt
00:01:35]} 11. hxg5 {[%clk 01:17:29]} {[%emt 00:01:14]} hxg5 {[%clk 01:12:07]}
{[%emt 00:00:07]} 12. Rxh8+ {[%clk 01:17:53]} {[%emt 00:00:07]} Bxh8 {[%clk
01:12:34]} {[%emt 00:00:02]} 13. Ngf3 {[%clk 01:17:12]} {[%emt 00:01:12]} g4
{[%clk 01:11:31]} {[%emt 00:01:33]} 14. Ne5 {[%clk 01:16:26]} {[%emt 00:01:16]}
Nxe5 {[%clk 01:06:40]} {[%emt 00:05:22]} 15. Bxe5 {[%clk 01:16:19]} {[%emt
00:00:37]} O-O-O {[%clk 01:03:34]} {[%emt 00:03:36]} 16. Qxb6 {[%clk 01:11:20]}
{[%emt 00:05:28]} axb6 {[%clk 01:03:07]} {[%emt 00:00:56]} 17. Be2 {[%clk
01:11:12]} {[%emt 00:00:39]} Nd7 {[%clk 00:59:37]} {[%emt 00:04:01]} 18. Bg3
{[%clk 01:10:53]} {[%emt 00:00:48]} e5 {[%clk 00:59:27]} {[%emt 00:00:41]} 19.
Rc1 {[%clk 01:09:08]} {[%emt 00:02:15]} Nb8 {[%clk 00:52:38]} {[%emt 00:07:20]}
20. c4 {[%clk 00:46:14]} {[%emt 00:23:24]} Nc6 {[%clk 00:48:57]} {[%emt
00:04:11]} 21. cxd5 {[%clk 00:45:27]} {[%emt 00:01:17]} Rxd5 {[%clk 00:43:30]}
{[%emt 00:05:58]} 22. dxe5 {[%clk 00:41:27]} {[%emt 00:04:29]} Bxe5 {[%clk
00:39:41]} {[%emt 00:04:19]} 23. Nc4 {[%clk 00:33:08]} {[%emt 00:08:50]} Bd4
{[%clk 00:35:49]} {[%emt 00:04:21]} 24. Nd6+ {[%clk 00:28:32]} {[%emt
00:05:05]} Kd8 {[%clk 00:35:48]} {[%emt 00:00:31]} 25. Nxf5 {[%clk 00:27:12]}
{[%emt 00:01:51]} Rxf5 {[%clk 00:36:13]} {[%emt 00:00:05]} 26. Bxg4 {[%clk
00:27:31]} {[%emt 00:00:11]} Ra5 {[%clk 00:36:24]} {[%emt 00:00:19]} 27. b4
{[%clk 00:16:36]} {[%emt 00:11:25]} Rxa2 {[%clk 00:33:01]} {[%emt 00:03:53]} 28.
b5 {[%clk 00:10:28]} {[%emt 00:06:38]} Nb4 {[%clk 00:32:41]} {[%emt 00:00:50]}
29. Rc8+ {[%clk 00:06:43]} {[%emt 00:04:16]} Ke7 {[%clk 00:33:03]} {[%emt
00:00:07]} 30. Rc7+ {[%clk 00:06:19]} {[%emt 00:00:55]} Kf6 {[%clk 00:32:19]}
{[%emt 00:01:14]} 31. Bh5 {[%clk 00:04:12]} {[%emt 00:02:38]} Bxf2+ {[%clk
00:27:11]} {[%emt 00:05:38]} 32. Bxf2 {[%clk 00:04:21]} {[%emt 00:00:21]} Nd3+
{[%clk 00:27:37]} {[%emt 00:00:03]} 33. Kf1 {[%clk 00:04:36]} {[%emt 00:00:16]}
Rxf2+ {[%clk 00:27:50]} {[%emt 00:00:16]} 34. Kg1 {[%clk 00:05:05]} Rb2 {[%clk
00:26:55]} {[%emt 00:01:26]} 35. Rxf7+ {[%clk 00:03:53]} {[%emt 00:01:42]} Kg5
{[%clk 00:27:04]} {[%emt 00:00:20]} 36. Bf3 {[%clk 00:03:34]} {[%emt 00:00:49]}
Ne5 {[%clk 00:27:05]} {[%emt 00:00:29]} 37. Rxb7 {[%clk 00:02:38]} {[%emt
00:01:27]} Nxf3+ {[%clk 00:27:28]} {[%emt 00:00:07]} 38. gxf3 {[%clk 00:02:57]}
{[%emt 00:00:12]} Rxb5 {[%clk 00:27:53]} {[%emt 00:00:04]} 39. Kg2 {[%clk
00:03:18]} {[%emt 00:00:09]} Kf4 {[%clk 00:28:15]} {[%emt 00:00:08]} 40. Rf7+
{[%clk 00:03:30]} {[%emt 00:00:19]} Rf5 {[%clk 00:28:38]} {[%emt 00:00:07]} 41.
Rb7 {[%clk 00:03:37]} {[%emt 00:00:22]} Rg5+ {[%clk 00:28:54]} {[%emt
00:00:11]} 42. Kf2 {[%clk 00:04:02]} {[%emt 00:00:08]} Rb5 {[%clk 00:29:18]}
{[%emt 00:00:06]} 43. Rf7+ {[%clk 00:04:21]} {[%emt 00:00:11]} Rf5 {[%clk
00:29:45]} {[%emt 00:00:03]} 44. Rd7 {[%clk 00:04:37]} {[%emt 00:00:14]} Rc5
{[%clk 00:30:05]} {[%emt 00:00:08]} 45. Rd4+ {[%clk 00:04:57]} {[%emt
00:00:10]} Ke5 {[%clk 00:30:30]} {[%emt 00:00:05]} 46. Rb4 {[%clk 00:05:20]}
{[%emt 00:00:08]} b5 {[%clk 00:30:50]} {[%emt 00:00:10]} 47. Kg3 {[%clk
00:05:46]} {[%emt 00:00:04]} Kf5 {[%clk 00:30:55]} {[%emt 00:00:23]} 48. Rh4
{[%clk 00:06:02]} {[%emt 00:00:15]} Kg5 {[%clk 00:31:05]} {[%emt 00:00:19]} 49.
f4+ {[%clk 00:05:18]} {[%emt 00:01:15]} Kg6 {[%clk 00:31:31]} {[%emt 00:00:04]}
50. Rh8 {[%clk 00:05:29]} {[%emt 00:00:20]} Rc1 {[%clk 00:31:48]} {[%emt
00:00:12]} 51. Rg8+ {[%clk 00:05:18]} {[%emt 00:00:40]} Kf6 {[%clk 00:32:05]}
{[%emt 00:00:13]} 52. Rb8 {[%clk 00:05:30]} {[%emt 00:00:20]} Rg1+ {[%clk
00:32:19]} {[%emt 00:00:15]} 53. Kf2 {[%clk 00:05:44]} {[%emt 00:00:16]} Rb1
{[%clk 00:32:44]} {[%emt 00:00:06]} 54. Ke3 {[%clk 00:06:05]} {[%emt 00:00:07]}
b4 {[%clk 00:32:57]} {[%emt 00:00:17]} 55. Rb6+ {[%clk 00:06:27]} {[%emt
00:00:09]} Kf5 {[%clk 00:33:22]} {[%emt 00:00:05]} 56. Rb5+ {[%clk 00:06:48]}
{[%emt 00:00:10]} Kf6 {[%clk 00:33:49]} {[%emt 00:00:02]} 57. Ke4 {[%clk
00:06:58]} {[%emt 00:00:20]} Re1+ {[%clk 00:34:13]} {[%emt 00:00:06]} 1/2-1/2

[Event "Kvibergspelen 2018"]
[Site "Prioritet Serneke Arena, Krutvagen 2, Gothenburg, Sweden"]
[Date "2018.04.22"]
[Round "8.13"]
[White "Petersson, Baldur Teodor"]
[Black "Naslund, Mikael"]
[Result "1/2-1/2"]
[TimeControl "15 minutes + 5 seconds per move from move one (Round 1 - 4) / 90 minutes + 30 seconds per move from move one (Round 5 - 8)"]
[WhiteTitle "CM"]
[BlackTitle "FM"]
[WhiteFideId "2309157"]
[BlackFideId "1708260"]
[WhiteElo "2003"]
[BlackElo "2224"]

1. e4 {[%clk 01:29:34]} {[%emt 00:01:25]} d5 {[%clk 01:29:59]} {[%emt
00:01:01]} 2. exd5 {[%clk 01:29:23]} {[%emt 00:00:41]} Nf6 {[%clk 01:30:25]}
{[%emt 00:00:04]} 3. d4 {[%clk 01:29:03]} {[%emt 00:00:50]} Bg4 {[%clk
01:30:34]} {[%emt 00:00:21]} 4. Be2 {[%clk 01:28:39]} {[%emt 00:00:54]} Bxe2
{[%clk 01:30:58]} {[%emt 00:00:06]} 5. Qxe2 {[%clk 01:28:29]} {[%emt 00:00:40]}
Qxd5 {[%clk 01:31:20]} {[%emt 00:00:08]} 6. Nf3 {[%clk 01:24:59]} {[%emt
00:03:59]} Nc6 {[%clk 01:31:05]} {[%emt 00:00:45]} 7. c4 {[%clk 01:22:46]}
{[%emt 00:02:44]} Qf5 {[%clk 01:27:40]} {[%emt 00:03:55]} 8. Nc3 {[%clk
01:18:41]} {[%emt 00:04:34]} O-O-O {[%clk 01:23:10]} {[%emt 00:05:01]} 9. d5
{[%clk 01:17:53]} {[%emt 00:01:17]} Nb4 {[%clk 01:22:35]} {[%emt 00:01:05]} 10.
O-O {[%clk 01:11:09]} {[%emt 00:07:15]} e6 {[%clk 01:10:03]} {[%emt 00:13:01]}
11. dxe6 {[%clk 01:08:12]} {[%emt 00:03:26]} fxe6 {[%clk 01:09:21]} {[%emt
00:01:12]} 12. Ne5 {[%clk 01:03:39]} {[%emt 00:05:03]} Bd6 {[%clk 01:02:42]}
{[%emt 00:07:09]} 13. Nf7 {[%clk 01:00:55]} {[%emt 00:03:14]} Ng4 {[%clk
01:00:41]} {[%emt 00:02:31]} 14. Nxd6+ {[%clk 01:00:19]} {[%emt 00:01:06]} Rxd6
{[%clk 00:55:03]} {[%emt 00:06:08]} 15. Nb5 {[%clk 00:58:22]} {[%emt 00:02:27]}
Rd7 {[%clk 00:53:51]} {[%emt 00:01:43]} 16. Bd2 {[%clk 00:55:37]} {[%emt
00:03:14]} Nc6 {[%clk 00:52:09]} {[%emt 00:02:11]} 17. Bc3 {[%clk 00:53:25]}
{[%emt 00:02:42]} a6 {[%clk 00:51:00]} {[%emt 00:01:40]} 18. Na3 {[%clk
00:53:38]} {[%emt 00:00:16]} e5 {[%clk 00:48:03]} {[%emt 00:03:27]} 19. f3
{[%clk 00:42:26]} {[%emt 00:11:41]} Nf6 {[%clk 00:47:12]} {[%emt 00:01:21]} 20.
b4 {[%clk 00:42:35]} {[%emt 00:00:21]} Nd4 {[%clk 00:38:08]} {[%emt 00:09:35]}
21. Qe3 {[%clk 00:36:55]} {[%emt 00:06:10]} Nh5 {[%clk 00:32:05]} {[%emt
00:06:31]} 22. g3 {[%clk 00:30:52]} {[%emt 00:06:34]} g5 {[%clk 00:26:55]}
{[%emt 00:05:40]} 23. Rae1 {[%clk 00:29:56]} {[%emt 00:01:27]} Rhd8 {[%clk
00:19:18]} {[%emt 00:08:07]} 24. g4 {[%clk 00:27:54]} {[%emt 00:02:31]} Qg6
{[%clk 00:17:41]} {[%emt 00:02:07]} 25. gxh5 {[%clk 00:27:34]} {[%emt
00:00:50]} Qxh5 {[%clk 00:18:10]} {[%emt 00:00:02]} 26. Qe4 {[%clk 00:26:09]}
{[%emt 00:01:55]} 1/2-1/2

[Event "Kvibergspelen 2018"]
[Site "Prioritet Serneke Arena, Krutvagen 2, Gothenburg, Sweden"]
[Date "2018.04.22"]
[Round "8.14"]
[White "Rasti, Arvin"]
[Black "Ask, Josef"]
[Result "1-0"]
[TimeControl "15 minutes + 5 seconds per move from move one (Round 1 - 4) / 90 minutes + 30 seconds per move from move one (Round 5 - 8)"]
[BlackTitle "FM"]
[WhiteFideId "1741160"]
[BlackFideId "1704583"]
[WhiteElo "1920"]
[BlackElo "2173"]

1. d4 {[%clk 01:30:54]} {[%emt 00:00:02]} Nf6 {[%clk 01:30:56]} {[%emt
00:00:04]} 2. Nf3 {[%clk 01:31:17]} {[%emt 00:00:07]} g6 {[%clk 01:31:19]}
{[%emt 00:00:05]} 3. g3 {[%clk 01:31:34]} {[%emt 00:00:15]} Bg7 {[%clk
01:31:44]} {[%emt 00:00:05]} 4. c4 {[%clk 01:31:59]} {[%emt 00:00:05]} d6
{[%clk 01:31:46]} {[%emt 00:00:28]} 5. Bg2 {[%clk 01:32:22]} {[%emt 00:00:06]}
O-O {[%clk 01:32:02]} {[%emt 00:00:15]} 6. Nc3 {[%clk 01:32:28]} {[%emt
00:00:24]} Nbd7 {[%clk 01:32:13]} {[%emt 00:00:18]} 7. e4 {[%clk 01:32:32]}
{[%emt 00:00:26]} e5 {[%clk 01:32:31]} {[%emt 00:00:12]} 8. O-O {[%clk
01:32:06]} {[%emt 00:00:56]} c6 {[%clk 01:32:41]} {[%emt 00:00:21]} 9. h3
{[%clk 01:32:27]} {[%emt 00:00:08]} Qb6 {[%clk 01:32:24]} {[%emt 00:00:47]} 10.
Re1 {[%clk 01:25:31]} {[%emt 00:07:25]} Re8 {[%clk 01:30:13]} {[%emt 00:02:41]}
11. Re2 {[%clk 01:21:41]} {[%emt 00:04:22]} exd4 {[%clk 01:28:41]} {[%emt
00:02:02]} 12. Nxd4 {[%clk 01:22:06]} {[%emt 00:00:04]} Ne5 {[%clk 01:28:44]}
{[%emt 00:00:27]} 13. b3 {[%clk 01:15:50]} {[%emt 00:06:46]} Bxh3 {[%clk
01:26:14]} {[%emt 00:03:01]} 14. Na4 {[%clk 01:12:50]} {[%emt 00:03:31]} Qxd4
{[%clk 01:23:26]} {[%emt 00:03:17]} 15. Qxd4 {[%clk 01:13:05]} {[%emt
00:00:14]} Bg4 {[%clk 01:16:20]} {[%emt 00:07:37]} 16. Rb2 {[%clk 01:08:05]}
{[%emt 00:05:30]} Nf3+ {[%clk 01:14:44]} {[%emt 00:02:06]} 17. Bxf3 {[%clk
01:07:52]} {[%emt 00:00:43]} Bxf3 {[%clk 01:15:01]} {[%emt 00:00:12]} 18. Bh6
{[%clk 01:03:11]} {[%emt 00:05:11]} Bh8 {[%clk 01:14:04]} {[%emt 00:01:27]} 19.
Re1 {[%clk 00:59:05]} {[%emt 00:04:37]} b5 {[%clk 01:05:08]} {[%emt 00:09:26]}
20. Qd3 {[%clk 00:50:52]} {[%emt 00:08:42]} Bxe4 {[%clk 01:04:04]} {[%emt
00:01:34]} 21. Rxe4 {[%clk 00:49:50]} {[%emt 00:01:33]} Rxe4 {[%clk 01:01:49]}
{[%emt 00:02:45]} 22. Nc3 {[%clk 00:49:30]} {[%emt 00:00:50]} Re1+ {[%clk
01:01:42]} {[%emt 00:00:37]} 23. Kg2 {[%clk 00:49:28]} {[%emt 00:00:32]} b4
{[%clk 01:01:59]} {[%emt 00:00:13]} 24. Re2 {[%clk 00:49:30]} {[%emt 00:00:28]}
Ra1 {[%clk 00:59:27]} {[%emt 00:03:01]} 25. Ne4 {[%clk 00:48:31]} {[%emt
00:01:29]} Ng4 {[%clk 00:59:26]} {[%emt 00:00:32]} 26. Be3 {[%clk 00:48:02]}
{[%emt 00:00:58]} Rd8 {[%clk 00:59:33]} {[%emt 00:00:23]} 27. Bd4 {[%clk
00:48:03]} {[%emt 00:00:28]} Ne5 {[%clk 00:59:44]} {[%emt 00:00:19]} 28. Bxe5
{[%clk 00:48:17]} {[%emt 00:00:17]} Bxe5 {[%clk 01:00:10]} {[%emt 00:00:03]} 29.
f4 {[%clk 00:48:27]} {[%emt 00:00:20]} Bg7 {[%clk 01:00:26]} {[%emt 00:00:15]}
30. Nxd6 {[%clk 00:48:19]} {[%emt 00:00:38]} c5 {[%clk 00:58:28]} {[%emt
00:02:28]} 31. Qd5 {[%clk 00:47:58]} {[%emt 00:00:51]} 1-0

[Event "Kvibergspelen 2018"]
[Site "Prioritet Serneke Arena, Krutvagen 2, Gothenburg, Sweden"]
[Date "2018.04.22"]
[Round "8.15"]
[White "Strom, Leif"]
[Black "Gonzalez, Emilio"]
[Result "1/2-1/2"]
[TimeControl "15 minutes + 5 seconds per move from move one (Round 1 - 4) / 90 minutes + 30 seconds per move from move one (Round 5 - 8)"]
[WhiteFideId "1709410"]
[BlackFideId "1721062"]
[WhiteElo "2111"]
[BlackElo "1921"]

1. c4 {[%clk 01:30:57]} {[%emt 00:00:02]} c5 {[%clk 01:30:10]} {[%emt
00:00:51]} 2. g3 {[%clk 01:31:21]} {[%emt 00:00:07]} Nf6 {[%clk 01:30:10]}
{[%emt 00:00:30]} 3. Bg2 {[%clk 01:31:45]} {[%emt 00:00:06]} g6 {[%clk
01:30:32]} {[%emt 00:00:09]} 4. Nc3 {[%clk 01:32:09]} {[%emt 00:00:06]} Bg7
{[%clk 01:30:52]} {[%emt 00:00:10]} 5. a3 {[%clk 01:32:08]} {[%emt 00:00:31]}
Nc6 {[%clk 01:30:28]} {[%emt 00:00:54]} 6. Rb1 {[%clk 01:32:32]} {[%emt
00:00:06]} a5 {[%clk 01:30:14]} {[%emt 00:00:44]} 7. d3 {[%clk 01:31:41]}
{[%emt 00:01:20]} O-O {[%clk 01:30:20]} {[%emt 00:00:24]} 8. e3 {[%clk
01:31:22]} {[%emt 00:00:49]} d6 {[%clk 01:26:51]} {[%emt 00:03:59]} 9. Nge2
{[%clk 01:31:46]} {[%emt 00:00:06]} Bf5 {[%clk 01:24:30]} {[%emt 00:02:51]} 10.
O-O {[%clk 01:31:56]} {[%emt 00:00:20]} Rb8 {[%clk 01:24:23]} {[%emt 00:00:37]}
11. h3 {[%clk 01:31:43]} {[%emt 00:00:43]} Ne8 {[%clk 01:11:04]} {[%emt
00:13:49]} 12. f4 {[%clk 01:28:40]} {[%emt 00:03:33]} Nc7 {[%clk 01:05:26]}
{[%emt 00:06:08]} 13. a4 {[%clk 01:25:31]} {[%emt 00:03:40]} Be6 {[%clk
01:01:26]} {[%emt 00:04:29]} 14. g4 {[%clk 01:22:13]} {[%emt 00:03:48]} f5
{[%clk 01:00:17]} {[%emt 00:01:39]} 15. g5 {[%clk 01:21:49]} {[%emt 00:00:54]}
d5 {[%clk 00:59:51]} {[%emt 00:00:56]} 16. b3 {[%clk 01:16:20]} {[%emt
00:05:59]} Bf7 {[%clk 00:50:47]} {[%emt 00:09:34]} 17. Bb2 {[%clk 00:52:55]}
{[%emt 00:23:55]} Nb4 {[%clk 00:48:38]} {[%emt 00:02:39]} 18. cxd5 {[%clk
00:45:24]} {[%emt 00:08:02]} Ncxd5 {[%clk 00:48:16]} {[%emt 00:00:52]} 19. Nxd5
{[%clk 00:45:33]} {[%emt 00:00:21]} Bxd5 {[%clk 00:42:53]} {[%emt 00:05:52]} 20.
Bxg7 {[%clk 00:44:55]} {[%emt 00:01:09]} Bxg2 {[%clk 00:42:22]} {[%emt
00:01:00]} 21. Kxg2 {[%clk 00:44:16]} {[%emt 00:01:08]} Kxg7 {[%clk 00:42:35]}
{[%emt 00:00:17]} 22. d4 {[%clk 00:44:37]} {[%emt 00:00:10]} Qd5+ {[%clk
00:40:20]} {[%emt 00:02:45]} 23. Kg1 {[%clk 00:41:23]} {[%emt 00:03:44]} Qe4
{[%clk 00:38:31]} {[%emt 00:02:19]} 24. Qd2 {[%clk 00:40:16]} {[%emt 00:01:37]}
Nc2 {[%clk 00:38:02]} {[%emt 00:00:59]} 25. Kf2 {[%clk 00:40:11]} {[%emt
00:00:35]} cxd4 {[%clk 00:31:20]} {[%emt 00:07:12]} 26. Nxd4 {[%clk 00:34:23]}
{[%emt 00:06:19]} Rbc8 {[%clk 00:30:28]} {[%emt 00:01:21]} 27. Rbc1 {[%clk
00:34:13]} {[%emt 00:00:40]} Nb4 {[%clk 00:26:22]} {[%emt 00:04:36]} 28. Rc3
{[%clk 00:28:26]} {[%emt 00:06:17]} Nd5 {[%clk 00:17:10]} {[%emt 00:09:42]} 29.
Rd3 {[%clk 00:22:36]} {[%emt 00:06:20]} Nb4 {[%clk 00:17:33]} {[%emt 00:00:06]}
30. Rc3 {[%clk 00:22:59]} {[%emt 00:00:08]} Nd5 {[%clk 00:17:44]} {[%emt
00:00:19]} 1/2-1/2

[Event "Kvibergspelen 2018"]
[Site "Prioritet Serneke Arena, Krutvagen 2, Gothenburg, Sweden"]
[Date "2018.04.22"]
[Round "8.16"]
[White "Rydstrom, Tom"]
[Black "Nguyen, Gabriel"]
[Result "1-0"]
[TimeControl "15 minutes + 5 seconds per move from move one (Round 1 - 4) / 90 minutes + 30 seconds per move from move one (Round 5 - 8)"]
[WhiteTitle "FM"]
[WhiteFideId "1714830"]
[BlackFideId "1720791"]
[WhiteElo "2357"]
[BlackElo "2024"]

1. e4 {[%clk 01:30:48]} {[%emt 00:00:09]} c5 {[%clk 01:30:53]} {[%emt
00:00:08]} 2. Nf3 {[%clk 01:31:15]} {[%emt 00:00:02]} e6 {[%clk 01:31:18]}
{[%emt 00:00:07]} 3. d4 {[%clk 01:31:41]} {[%emt 00:00:04]} cxd4 {[%clk
01:31:43]} {[%emt 00:00:04]} 4. Nxd4 {[%clk 01:32:08]} {[%emt 00:00:03]} a6
{[%clk 01:31:29]} {[%emt 00:00:45]} 5. Bd3 {[%clk 01:31:14]} {[%emt 00:01:23]}
Bc5 {[%clk 01:31:10]} {[%emt 00:00:50]} 6. Nb3 {[%clk 01:31:38]} {[%emt
00:00:06]} Be7 {[%clk 01:31:36]} {[%emt 00:00:04]} 7. Be3 {[%clk 01:31:56]}
{[%emt 00:00:12]} d6 {[%clk 01:31:41]} {[%emt 00:00:25]} 8. Qg4 {[%clk
01:29:15]} {[%emt 00:03:10]} g6 {[%clk 01:30:06]} {[%emt 00:02:06]} 9. Nc3
{[%clk 01:29:22]} {[%emt 00:00:23]} Nd7 {[%clk 01:30:27]} {[%emt 00:00:09]} 10.
O-O-O {[%clk 01:28:40]} {[%emt 00:01:12]} b5 {[%clk 01:30:13]} {[%emt
00:00:44]} 11. a3 {[%clk 01:16:25]} {[%emt 00:12:46]} Bb7 {[%clk 01:26:41]}
{[%emt 00:04:02]} 12. f4 {[%clk 01:14:56]} {[%emt 00:01:59]} Ngf6 {[%clk
01:26:16]} {[%emt 00:00:55]} 13. Qe2 {[%clk 01:15:06]} {[%emt 00:00:20]} O-O
{[%clk 01:25:51]} {[%emt 00:00:55]} 14. Kb1 {[%clk 01:04:00]} {[%emt 00:11:34]}
Qc7 {[%clk 01:23:59]} {[%emt 00:02:23]} 15. g4 {[%clk 00:55:30]} {[%emt
00:09:00]} Rac8 {[%clk 01:06:31]} {[%emt 00:17:58]} 16. Rhf1 {[%clk 00:36:43]}
{[%emt 00:19:17]} Nb6 {[%clk 00:58:52]} {[%emt 00:08:09]} 17. f5 {[%clk
00:30:02]} {[%emt 00:07:10]} Nfd7 {[%clk 00:45:52]} {[%emt 00:13:30]} 18. Bh6
{[%clk 00:24:58]} {[%emt 00:05:34]} Rfe8 {[%clk 00:44:22]} {[%emt 00:02:01]} 19.
fxe6 {[%clk 00:24:55]} {[%emt 00:00:33]} fxe6 {[%clk 00:44:41]} {[%emt
00:00:11]} 20. Nd4 {[%clk 00:17:21]} {[%emt 00:08:04]} Nc5 {[%clk 00:42:53]}
{[%emt 00:02:18]} 21. h4 {[%clk 00:15:37]} {[%emt 00:02:14]} Bf8 {[%clk
00:38:22]} {[%emt 00:05:02]} 22. Be3 {[%clk 00:13:45]} {[%emt 00:02:21]} e5
{[%clk 00:32:46]} {[%emt 00:06:06]} 23. Nb3 {[%clk 00:13:00]} {[%emt 00:01:15]}
Ne6 {[%clk 00:26:07]} {[%emt 00:07:10]} 24. h5 {[%clk 00:12:19]} {[%emt
00:01:11]} Bg7 {[%clk 00:23:38]} {[%emt 00:02:58]} 25. hxg6 {[%clk 00:11:54]}
{[%emt 00:00:55]} hxg6 {[%clk 00:24:03]} {[%emt 00:00:05]} 26. Nd5 {[%clk
00:10:54]} {[%emt 00:01:31]} Bxd5 {[%clk 00:22:52]} {[%emt 00:01:41]} 27. exd5
{[%clk 00:11:22]} {[%emt 00:00:01]} Nf4 {[%clk 00:22:40]} {[%emt 00:00:42]} 28.
Bxf4 {[%clk 00:07:36]} {[%emt 00:04:16]} exf4 {[%clk 00:23:03]} {[%emt
00:00:07]} 29. Qh2 {[%clk 00:06:30]} {[%emt 00:01:36]} Na4 {[%clk 00:20:56]}
{[%emt 00:02:37]} 30. Bxg6 {[%clk 00:06:09]} {[%emt 00:00:52]} Bxb2 {[%clk
00:18:53]} {[%emt 00:02:33]} 31. Bxe8 {[%clk 00:01:05]} {[%emt 00:05:34]} Be5
{[%clk 00:18:12]} {[%emt 00:01:10]} 32. Bc6 {[%clk 00:01:07]} {[%emt 00:00:29]}
Nc3+ {[%emt 00:01:19]} 33. Kc1 {[%emt 00:00:01]} Na2+ {[%clk 00:17:03]} {[%emt
00:00:49]} 34. Kd2 {[%clk 00:02:03]} {[%emt 00:00:04]} Bc3+ {[%clk 00:17:30]}
{[%emt 00:00:03]} 35. Kd3 {[%clk 00:01:58]} {[%emt 00:00:33]} Re8 {[%clk
00:16:43]} {[%emt 00:01:19]} 36. Qxf4 {[%clk 00:02:10]} {[%emt 00:00:18]} Qh7+
{[%clk 00:09:43]} {[%emt 00:07:29]} 37. Qf5 {[%clk 00:02:31]} {[%emt 00:00:09]}
Qg7 {[%clk 00:06:25]} {[%emt 00:03:48]} 38. Bxe8 {[%clk 00:02:45]} {[%emt
00:00:16]} Bf6 {[%clk 00:06:04]} {[%emt 00:00:51]} 39. Qe6+ {[%clk 00:03:07]}
{[%emt 00:00:08]} Kh8 {[%clk 00:05:55]} {[%emt 00:00:40]} 40. Rh1 {[%clk
00:03:32]} {[%emt 00:00:04]} 1-0